fUSD/lending_fUSD_20250223
["ID","MTS","AMOUNT","RATE_DAILY","PERIOD"]
[354151732,1740291038740,-2000.0,0.0002,2]
[354151734,1740291038749,-908.3257,0.0002,2]
[354151736,1740291038758,-2000.0,0.0002,2]
[354151738,1740291038767,-7893.04,0.0002,2]
[354151739,1740291038777,-12500.0,0.0002,2]
[354151741,1740291038786,-11204.2283405,0.0002,2]
[354151744,1740291038798,-507.07450877,0.0002,2]
[354151746,1740291038810,-788.69715073,0.0002,2]
[354151748,1740291038819,-2000.0,0.0002,2]
[354151750,1740291038828,-6968.43102433,0.0002,2]
[354151752,1740291038839,-1209.496,0.0002,2]
[354151754,1740291038851,-1822.07297567,0.0002,2]
[354151756,1740291038859,-168.31840885,0.0002,2]
[354151758,1740291038869,-10000.0,0.0002,2]
[354151760,1740291038878,-300.0,0.0002,2]
[354151762,1740291038888,-300.0,0.0002,2]
[354151764,1740291038898,-300.0,0.0002,2]
[354151766,1740291038907,-300.0,0.0002,2]
[354151768,1740291038917,-155.0,0.0002,2]
[354151770,1740291038926,-584.01376889,0.0002,2]
[354151772,1740291038936,-200.36617937,0.0002,2]
[354151774,1740291038945,-253.13369929,0.0002,2]
[354151776,1740291038954,-10000.0,0.0002,2]
[354151778,1740291038963,-380.0,0.0002,2]
[354151780,1740291038972,-150.0,0.0002,7]
[354151782,1740291038981,-899.99999902,0.0002,21]
[354151784,1740291038991,-450.73371,0.0002,2]
[354151786,1740291039000,-159.0,0.0002,2]
[354151788,1740291039009,-159.0,0.0002,2]
[354151790,1740291039018,-159.0,0.0002,2]
[354151792,1740291039026,-10000.0,0.0002,2]
[354151794,1740291039039,-267.27,0.0002,2]
[354151796,1740291039048,-500.0,0.0002,7]
[354151798,1740291039057,-1500.0,0.0002,5]
[354151800,1740291039066,-150.0,0.0002,5]
[354151802,1740291039076,-2000.0,0.0002001,2]
[354151804,1740291039086,-152.0,0.00020019,3]
[354151806,1740291039095,-3842.05588,0.0002002,2]
[354151808,1740291039104,-164.37018893,0.00020025,2]
[354151810,1740291039114,-735.841,0.00020027,7]
[354151812,1740291039123,-312.68611574,0.00020036,2]
[354151814,1740291039133,-12500.0,0.0002004,2]
[354151817,1740291039142,-8532.93,0.0002004,2]
[354151819,1740291039152,-352.1949844,0.00020064,3]
[354151821,1740291039161,-500.0,0.00020064,3]
[354151823,1740291039171,-392.64909577,0.00020064,3]
[354151825,1740291039180,-312.68611574,0.00020076,2]
[354151827,1740291039189,-12500.0,0.0002008,2]
[354151829,1740291039198,-177.2613544,0.00020083,2]
[354151831,1740291039207,-2310.0374225,0.00020083,2]
[354151833,1740291039216,-164.37018893,0.00020088,2]
[354151835,1740291039225,-324.09391,0.00020088,7]
[354151836,1740291039238,-967.2312181,0.00020093,2]
[354151839,1740291039248,-715.7429497,0.00020093,2]
[354151840,1740291039257,-177.2613544,0.00020096,2]
[354151843,1740291039267,-2310.0374225,0.00020096,2]
[354151845,1740291039276,-579.94852184,0.00020098,7]
[354151846,1740291039286,-967.2312181,0.00020106,2]
[354151847,1740291039296,-715.7429497,0.00020106,2]
[354151848,1740291039305,-10000.0,0.00020107,2]
[354151849,1740291039315,-10000.0,0.00020107,2]
[354151850,1740291039325,-2099.46,0.00020107,2]
[354151851,1740291039335,-10000.0,0.00020107,2]
[354151852,1740291039344,-11722.63656925,0.0002011,2]
[354151853,1740291039353,-500.0,0.0002011,5]
[354151854,1740291039363,-177.2613544,0.00020113,2]
[354151855,1740291039372,-2310.0374225,0.00020113,2]
[354151856,1740291039381,-312.68611574,0.00020115,2]
[354151857,1740291039390,-12500.0,0.0002012,2]
[354151858,1740291039399,-967.2312181,0.00020128,2]
[354151859,1740291039409,-715.7429497,0.00020128,2]
[354151860,1740291039419,-177.2613544,0.00020136,2]
[354151861,1740291039428,-2310.0374225,0.00020136,2]
[354151862,1740291039437,-353.0,0.00020139,120]
[354151863,1740291039447,-5218.0,0.00020141,120]
[354151864,1740291039456,-967.2312181,0.00020146,2]
[354151865,1740291039466,-715.7429497,0.00020146,2]
[354151866,1740291039476,-41744.64057561,0.0002015,2]
[354151867,1740291039485,-1660.43869031,0.0002015,2]
[354151869,1740291039494,-164.37018893,0.0002015,2]
[354151871,1740291039504,-974.51741447,0.00020155,2]
[354151872,1740291039513,-329.15218565,0.00020155,2]
[354151873,1740291039522,-312.68611574,0.00020155,2]
[354151874,1740291039531,-1136.60497238,0.00020155,2]
[354151875,1740291039541,-159.49150104,0.00020155,2]
[354151876,1740291039550,-150.3725237,0.00020155,2]
[354151878,1740291039559,-404.75328866,0.00020155,3]
[354151879,1740291039568,-1730.46718848,0.00020155,2]
[354151880,1740291039578,-297.10742456,0.00020155,2]
[354151881,1740291039587,-297.10742456,0.00020155,2]
[354151882,1740291039596,-297.10742456,0.00020155,2]
[354151883,1740291039606,-297.10742456,0.00020155,2]
[354151884,1740291039615,-297.10742456,0.00020155,2]
[354151885,1740291039625,-297.10742456,0.00020155,2]
[354151886,1740291039634,-297.10742456,0.00020155,2]
[354151887,1740291039643,-297.10742456,0.00020155,2]
[354151888,1740291039652,-297.10742456,0.00020155,2]
[354151889,1740291039661,-297.10742456,0.00020155,2]
[354151890,1740291039671,-297.10742456,0.00020155,2]
[354151891,1740291039680,-297.10742456,0.00020155,2]
[354151892,1740291039689,-297.10742456,0.00020155,2]
[354151893,1740291039698,-297.10742456,0.00020155,2]
[354151894,1740291039708,-297.10742456,0.00020155,2]
[354151895,1740291039717,-297.10742456,0.00020155,2]
[354151896,1740291039730,-297.10742456,0.00020155,2]
[354151897,1740291039739,-297.10742456,0.00020155,2]
[354151898,1740291039748,-297.10742456,0.00020155,2]
[354151899,1740291039758,-297.1,0.00020155,2]
[354151900,1740291039767,-693.2506573,0.00020155,2]
[354151901,1740291039777,-693.2506573,0.00020155,2]
[354151902,1740291039786,-693.2506573,0.00020155,2]
[354151903,1740291039796,-693.2506573,0.00020155,2]
[354151904,1740291039806,-693.2506573,0.00020155,2]
[354151905,1740291039815,-693.2506573,0.00020155,2]
[354151906,1740291039824,-693.2506573,0.00020155,2]
[354151907,1740291039833,-693.2506573,0.00020155,2]
[354151908,1740291039842,-693.2506573,0.00020155,2]
[354151909,1740291039851,-693.2506573,0.00020155,2]
[354151910,1740291039861,-693.2506573,0.00020155,2]
[354151911,1740291039870,-693.2506573,0.00020155,2]
[354151912,1740291039882,-693.2506573,0.00020155,2]
[354151913,1740291039891,-693.2506573,0.00020155,2]
[354151914,1740291039901,-693.2506573,0.00020155,2]
[354151915,1740291039910,-693.2506573,0.00020155,2]
[354151916,1740291039920,-693.2506573,0.00020155,2]
[354151917,1740291039929,-693.2506573,0.00020155,2]
[354151918,1740291039939,-693.2506573,0.00020155,2]
[354151919,1740291039948,-693.25,0.00020155,2]
[354151920,1740291039957,-308.17110993,0.00020155,2]
[354151921,1740291039966,-308.17110993,0.00020155,2]
[354151922,1740291039976,-308.17110993,0.00020155,2]
[354151923,1740291039986,-308.17110993,0.00020155,2]
[354151924,1740291039995,-308.17110993,0.00020155,2]
[354151925,1740291040005,-308.17110993,0.00020155,2]
[354151926,1740291040014,-308.17110993,0.00020155,2]
[354151927,1740291040023,-308.17110993,0.00020155,2]
[354151928,1740291040032,-308.17110993,0.00020155,2]
[354151929,1740291040042,-308.17110993,0.00020155,2]
[354151930,1740291040051,-308.17110993,0.00020155,2]
[354151931,1740291040061,-308.17110993,0.00020155,2]
[354151932,1740291040070,-308.17110993,0.00020155,2]
[354151933,1740291040085,-308.17110993,0.00020155,2]
[354151934,1740291040098,-308.17110993,0.00020155,2]
[354151935,1740291040111,-308.17110993,0.00020155,2]
[354151936,1740291040123,-308.17110993,0.00020155,2]
[354151937,1740291040135,-308.17110993,0.00020155,2]
[354151938,1740291040146,-308.17110993,0.00020155,2]
[354151939,1740291040156,-308.17,0.00020155,2]
[354151940,1740291040167,-719.06592318,0.00020155,2]
[354151941,1740291040178,-719.06592318,0.00020155,2]
[354151942,1740291040189,-719.06592318,0.00020155,2]
[354151943,1740291040202,-719.06592318,0.00020155,2]
[354151944,1740291040213,-719.06592318,0.00020155,2]
[354151945,1740291040224,-719.06592318,0.00020155,2]
[354151946,1740291040236,-719.06592318,0.00020155,2]
[354151947,1740291040251,-719.06592318,0.00020155,2]
[354151948,1740291040263,-719.06592318,0.00020155,2]
[354151949,1740291040275,-719.06592318,0.00020155,2]
[354151950,1740291040287,-719.06592318,0.00020155,2]
[354151951,1740291040299,-719.06592318,0.00020155,2]
[354151952,1740291040311,-719.06592318,0.00020155,2]
[354151953,1740291040323,-719.06592318,0.00020155,2]
[354151955,1740291040335,-719.06592318,0.00020155,2]
[354151957,1740291040346,-719.06592318,0.00020155,2]
[354151959,1740291040357,-719.06592318,0.00020155,2]
[354151961,1740291040366,-719.06592318,0.00020155,2]
[354151963,1740291040376,-719.06592318,0.00020155,2]
[354151965,1740291040387,-719.06,0.00020155,2]
[354151968,1740291040403,-390.59810308,0.00020155,2]
[354151970,1740291040415,-390.59810308,0.00020155,2]
[354151972,1740291040426,-390.59810308,0.00020155,2]
[354151975,1740291040437,-390.59810308,0.00020155,2]
[354151977,1740291040449,-390.59810308,0.00020155,2]
[354151979,1740291040460,-390.59810308,0.00020155,2]
[354151981,1740291040472,-390.59810308,0.00020155,2]
[354151984,1740291040484,-390.59810308,0.00020155,2]
[354151986,1740291040496,-390.59810308,0.00020155,2]
[354151988,1740291040507,-390.59810308,0.00020155,2]
[354151990,1740291040518,-390.59810308,0.00020155,2]
[354151993,1740291040531,-390.59810308,0.00020155,2]
[354151995,1740291040542,-390.59810308,0.00020155,2]
[354151997,1740291040554,-390.59810308,0.00020155,2]
[354151999,1740291040567,-390.59810308,0.00020155,2]
[354152002,1740291040579,-390.59810308,0.00020155,2]
[354152004,1740291040590,-390.59810308,0.00020155,2]
[354152006,1740291040603,-390.59810308,0.00020155,2]
[354152008,1740291040615,-390.59810308,0.00020155,2]
[354152010,1740291040626,-390.59,0.00020155,2]
[354152013,1740291040638,-911.39557385,0.00020155,2]
[354152015,1740291040649,-911.39557385,0.00020155,2]
[354152017,1740291040659,-911.39557385,0.00020155,2]
[354152019,1740291040671,-911.39557385,0.00020155,2]
[354152021,1740291040682,-750.28879175,0.00020155,2]
[354152023,1740291040699,-161.1067821,0.00020155,2]
[354152024,1740291040711,-911.39557385,0.00020155,2]
[354152025,1740291040722,-911.39557385,0.00020155,2]
[354152026,1740291040734,-911.39557385,0.00020155,2]
[354152027,1740291040746,-911.39557385,0.00020155,2]
[354152028,1740291040758,-911.39557385,0.00020155,2]
[354152030,1740291040770,-911.39557385,0.00020155,2]
[354152032,1740291040782,-911.39557385,0.00020155,2]
[354152034,1740291040793,-911.39557385,0.00020155,2]
[354152036,1740291040804,-911.39557385,0.00020155,2]
[354152038,1740291040813,-911.39557385,0.00020155,2]
[354152039,1740291040824,-911.39557385,0.00020155,2]
[354152040,1740291040835,-911.39557385,0.00020155,2]
[354152041,1740291040845,-911.39557385,0.00020155,2]
[354152043,1740291040855,-911.39557385,0.00020155,2]
[354152045,1740291040867,-911.39,0.00020155,2]
[354152047,1740291040879,-12500.0,0.0002016,2]
[354152049,1740291040893,-290.30837366,0.000202,120]
[354152051,1740291040903,-12500.0,0.000202,2]
[354152053,1740291040913,-177.2613544,0.000202,2]
[354152055,1740291040924,-2310.0374225,0.000202,2]
[354152057,1740291040934,-967.2312181,0.00020205,2]
[354152060,1740291040945,-715.7429497,0.00020205,2]
[354152062,1740291040955,-10000.0,0.00020213,2]
[354152064,1740291040966,-10000.0,0.00020213,2]
[354152066,1740291040978,-154.62,0.00020219,2]
[354152068,1740291040988,-1669.8,0.00020219,60]
[354152070,1740291040998,-1669.8,0.00020219,60]
[354152072,1740291041008,-1669.8,0.00020219,60]
[354152074,1740291041019,-1669.8,0.00020219,60]
[354152077,1740291041028,-1669.8,0.00020219,60]
[354152079,1740291041038,-1669.8,0.00020219,60]
[354152081,1740291041048,-1669.8,0.00020219,60]
[354152083,1740291041059,-1669.8,0.00020219,60]
[354152085,1740291041069,-1669.8,0.00020219,60]
[354152087,1740291041081,-1669.8,0.00020219,60]
[354152089,1740291041092,-1669.8,0.00020219,60]
[354152091,1740291041103,-1669.8,0.00020219,60]
[354152093,1740291041114,-1669.8,0.00020219,60]
[354152096,1740291041124,-1669.8,0.00020219,60]
[354152098,1740291041135,-1669.8,0.00020219,60]
[354152100,1740291041146,-1669.8,0.00020219,60]
[354152102,1740291041157,-1669.8,0.00020219,60]
[354152104,1740291041168,-1669.8,0.00020219,60]
[354152106,1740291041179,-1669.8,0.00020219,60]
[354152108,1740291041190,-1669.8,0.00020219,60]
[354152111,1740291041201,-1669.8,0.00020219,60]
[354152113,1740291041211,-1669.8,0.00020219,60]
[354152115,1740291041222,-1669.8,0.00020219,60]
[354152117,1740291041233,-1669.89151087,0.00020219,60]
[354152119,1740291041247,-252.26335894,0.00020227,10]
[354152121,1740291041257,-12500.0,0.0002024,2]
[354152124,1740291041268,-987.45,0.00020247,2]
[354152126,1740291041280,-369.21,0.00020247,2]
[354152128,1740291041293,-987.45,0.00020247,2]
[354152130,1740291041304,-439.38,0.00020247,2]
[354152132,1740291041315,-439.38,0.00020247,2]
[354152135,1740291041325,-987.45,0.00020247,2]
[354152137,1740291041337,-439.38,0.00020247,2]
[354152139,1740291041348,-439.38,0.00020247,2]
[354152141,1740291041358,-986.73,0.00020247,2]
[354152143,1740291041369,-500.0,0.00020249,2]
[354152145,1740291041380,-151.0,0.0002025,2]
[354152147,1740291041391,-268.119577,0.0002025,2]
[354152150,1740291041403,-151.0,0.0002025,2]
[354152152,1740291041414,-151.0,0.0002025,2]
[354152154,1740291041425,-151.0,0.0002025,2]
[354152156,1740291041436,-151.0,0.0002025,2]
[354152158,1740291041447,-151.0,0.0002025,2]
[354152161,1740291041457,-151.0,0.0002025,2]
[354152163,1740291041468,-151.0,0.0002025,2]
[354152165,1740291041478,-151.0,0.0002025,2]
[354152167,1740291041489,-247.332,0.0002025,2]
[354152169,1740291041500,-151.0,0.0002025,2]
[354152171,1740291041511,-151.0,0.0002025,2]
[354152174,1740291041522,-297.17149,0.0002025,2]
[354152176,1740291041532,-280.865064,0.0002025,2]
[354152178,1740291041544,-500.0,0.0002025,2]
[354152180,1740291041555,-402.72075059,0.00020254,2]
[354152182,1740291041566,-241.63245035,0.00020254,2]
[354152184,1740291041577,-161.08830024,0.00020254,2]
[354152186,1740291041588,-151.0,0.00020254,2]
[354152189,1740291041599,-154.730638,0.00020254,2]
[354152191,1740291041609,-181.049379,0.00020254,2]
[354152193,1740291041619,-181.049379,0.00020254,2]
[354152195,1740291041628,-181.049379,0.00020254,2]
[354152197,1740291041638,-181.049379,0.00020254,2]
[354152199,1740291041647,-181.049379,0.00020254,2]
[354152201,1740291041656,-181.049379,0.00020254,2]
[354152203,1740291041665,-181.049379,0.00020254,2]
[354152205,1740291041674,-181.049379,0.00020254,2]
[354152207,1740291041683,-181.049379,0.00020254,2]
[354152210,1740291041702,-181.049379,0.00020254,2]
[354152212,1740291041712,-181.049379,0.00020254,2]
[354152214,1740291041721,-181.049379,0.00020254,2]
[354152216,1740291041731,-181.049379,0.00020254,2]
[354152218,1740291041740,-181.049379,0.00020254,2]
[354152220,1740291041750,-181.049379,0.00020254,2]
[354152222,1740291041760,-181.049379,0.00020254,2]
[354152224,1740291041770,-181.049379,0.00020254,2]
[354152226,1740291041780,-181.049379,0.00020254,2]
[354152228,1740291041790,-181.049379,0.00020254,2]
[354152230,1740291041801,-181.049377,0.00020254,2]
[354152232,1740291041811,-151.0,0.00020254,2]
[354152234,1740291041821,-151.0,0.00020254,2]
[354152236,1740291041830,-151.0,0.00020254,2]
[354152238,1740291041839,-205.658775,0.00020254,2]
[354152240,1740291041849,-151.0,0.00020254,2]
[354152242,1740291041858,-151.0,0.00020254,2]
[354152244,1740291041868,-151.0,0.00020254,2]
[354152246,1740291041877,-151.0,0.00020254,2]
[354152248,1740291041887,-151.0,0.00020254,2]
[354152250,1740291041896,-151.0,0.00020254,2]
[354152252,1740291041906,-151.0,0.00020254,2]
[354152254,1740291041916,-151.0,0.00020254,2]
[354152256,1740291041925,-151.0,0.00020254,2]
[354152258,1740291041934,-151.0,0.00020254,2]
[354152260,1740291041944,-239.482886,0.00020254,2]
[354152262,1740291041954,-239.482886,0.00020254,2]
[354152264,1740291041963,-337.746522,0.00020254,2]
[354152266,1740291041974,-337.746522,0.00020254,2]
[354152268,1740291041983,-151.0,0.00020254,2]
[354152269,1740291041992,-151.0,0.00020254,2]
[354152270,1740291042002,-151.0,0.00020254,2]
[354152271,1740291042011,-1600.0,0.00020254,2]
[354152272,1740291042020,-151.0,0.00020254,2]
[354152273,1740291042030,-1600.0,0.00020254,2]
[354152298,1740291042292,-151.0,0.00020254,2]
[354152300,1740291042309,-184.866033,0.00020254,2]
[354152302,1740291042320,-184.866033,0.00020254,2]
[354152304,1740291042330,-160.840508,0.00020254,2]
[354152306,1740291042339,-160.840508,0.00020254,2]
[354152309,1740291042349,-326.87567701,0.00020255,3]
[354152311,1740291042359,-285390.63776951,0.00020255,3]
[354152321,1740291042450,-973.30208184,0.00020255,3]
[354152323,1740291042462,-91227.14076968,0.00020255,3]
[354152326,1740291042473,-846.39704208,0.00020255,3]
[354152328,1740291042485,-647.2187102,0.00020255,3]
[354152330,1740291042496,-2704.95483257,0.00020255,3]
[354152333,1740291042508,-332.14516945,0.00020255,3]
[354152335,1740291042519,-1956.94,0.00020255,3]
[354152338,1740291042531,-7858.54724254,0.00020255,3]
[354152340,1740291042546,-420.97094512,0.00020255,3]
[354152342,1740291042558,-31798.8954565,0.00020255,3]
[354152346,1740291042569,-21666.90572139,0.00020255,3]
[354152348,1740291042580,-2595.3150386,0.00020255,3]
[354152350,1740291042591,-324.92886602,0.00020255,3]
[354152363,1740291042703,-541.97,0.00019726,3]
[354152365,1740291042712,-469.89821652,0.00020255,3]
[354152367,1740291042723,-15000.0,0.00020255,3]
[354152369,1740291042733,-42692.33627575,0.00020255,3]
[354152371,1740291042744,-4204.82971731,0.00020255,3]
[354152373,1740291042755,-2326.68890568,0.00020255,3]
[354152376,1740291042766,-9953.26741241,0.00020255,3]
[354152378,1740291042782,-1574.59846429,0.00020255,3]
[354152380,1740291042792,-1079.34910173,0.00020255,3]
[354152383,1740291042803,-361271.01812122,0.00020255,3]
[354152385,1740291042814,-3125.51735161,0.00020255,3]
[354152386,1740291042825,-280970.9329141,0.00020255,3]
[354152387,1740291042835,-459.99985624,0.00020255,3]
[354152388,1740291042847,-3695377.64280313,0.00020255,3]
[354152389,1740291042856,-1384.16288694,0.00020255,2]
[354152390,1740291042865,-151.0,0.00020255,2]
[354152391,1740291042875,-151.0,0.00020255,2]
[354152392,1740291042884,-151.0,0.00020255,2]
[354152393,1740291042893,-151.0,0.00020255,2]
[354152394,1740291042903,-151.0,0.00020255,2]
[354152395,1740291042912,-151.0,0.00020255,2]
[354152396,1740291042921,-151.0,0.00020255,2]
[354152397,1740291042931,-151.0,0.00020255,2]
[354152398,1740291042940,-151.0,0.00020255,2]
[354152399,1740291042949,-151.0,0.00020255,2]
[354152400,1740291042958,-151.0,0.00020255,2]
[354152401,1740291042967,-151.0,0.00020255,2]
[354152402,1740291042976,-209.713875,0.00020255,2]
[354152403,1740291042985,-151.0,0.00020255,2]
[354152404,1740291042993,-151.0,0.00020255,2]
[354152405,1740291043002,-151.0,0.00020255,2]
[354152406,1740291043012,-151.0,0.00020255,2]
[354152407,1740291043021,-151.0,0.00020255,2]
[354152408,1740291043030,-151.0,0.00020255,2]
[354152409,1740291043039,-151.0,0.00020255,2]
[354152410,1740291043049,-151.0,0.00020255,2]
[354152411,1740291043059,-151.0,0.00020255,2]
[354152412,1740291043068,-151.0,0.00020255,2]
[354152413,1740291043077,-151.0,0.00020255,2]
[354152415,1740291043086,-151.0,0.00020255,2]
[354152417,1740291043096,-151.0,0.00020255,2]
[354152419,1740291043105,-151.0,0.00020255,2]
[354152421,1740291043116,-151.0,0.00020255,2]
[354152423,1740291043125,-151.0,0.00020255,2]
[354152424,1740291043136,-293.492006,0.00020255,2]
[354152426,1740291043145,-304.970036,0.00020255,2]
[354152428,1740291043154,-304.970036,0.00020255,2]
[354152429,1740291043165,-304.970036,0.00020255,2]
[354152430,1740291043174,-304.970036,0.00020255,2]
[354152431,1740291043183,-304.970036,0.00020255,2]
[354152432,1740291043192,-304.970036,0.00020255,2]
[354152434,1740291043201,-304.970036,0.00020255,2]
[354152435,1740291043210,-304.970036,0.00020255,2]
[354152436,1740291043219,-304.970036,0.00020255,2]
[354152437,1740291043228,-304.970036,0.00020255,2]
[354152438,1740291043241,-304.970036,0.00020255,2]
[354152439,1740291043251,-304.970036,0.00020255,2]
[354152440,1740291043261,-304.970036,0.00020255,2]
[354152441,1740291043271,-304.970036,0.00020255,2]
[354152442,1740291043280,-304.970036,0.00020255,2]
[354152443,1740291043290,-304.970036,0.00020255,2]
[354152444,1740291043300,-304.970036,0.00020255,2]
[354152445,1740291043309,-304.970036,0.00020255,2]
[354152446,1740291043319,-304.970036,0.00020255,2]
[354152447,1740291043329,-304.970029,0.00020255,2]
[354152448,1740291043339,-209.80458,0.00020255,2]
[354152449,1740291043350,-151.0,0.00020255,2]
[354152450,1740291043360,-190.631099,0.00020255,2]
[354152451,1740291043370,-151.0,0.00020255,2]
[354152452,1740291043381,-151.0,0.00020255,2]
[354152453,1740291043390,-152.799349,0.00020255,2]
[354152454,1740291043399,-151.0,0.00020255,2]
[354152455,1740291043409,-151.0,0.00020255,2]
[354152456,1740291043419,-151.0,0.00020255,2]
[354152457,1740291043428,-151.0,0.00020255,2]
[354152458,1740291043437,-151.0,0.00020255,2]
[354152459,1740291043447,-151.0,0.00020255,2]
[354152460,1740291043456,-151.0,0.00020255,2]
[354152461,1740291043464,-151.0,0.00020255,2]
[354152462,1740291043473,-222.725901,0.00020255,2]
[354152463,1740291043482,-151.0,0.00020255,2]
[354152464,1740291043491,-151.0,0.00020255,2]
[354152465,1740291043502,-182.306937,0.00020255,2]
[354152466,1740291043512,-151.0,0.00020255,2]
[354152467,1740291043521,-182.306937,0.00020255,2]
[354152468,1740291043531,-151.0,0.00020255,2]
[354152469,1740291043540,-182.306937,0.00020255,2]
[354152470,1740291043550,-151.0,0.00020255,2]
[354152471,1740291043559,-182.306937,0.00020255,2]
[354152472,1740291043569,-151.0,0.00020255,2]
[354152473,1740291043580,-182.306937,0.00020255,2]
[354152474,1740291043589,-206.868893,0.00020255,2]
[354152475,1740291043599,-182.306937,0.00020255,2]
[354152476,1740291043608,-182.306937,0.00020255,2]
[354152477,1740291043618,-182.306937,0.00020255,2]
[354152478,1740291043627,-182.306937,0.00020255,2]
[354152479,1740291043638,-182.306937,0.00020255,2]
[354152480,1740291043647,-182.306937,0.00020255,2]
[354152481,1740291043657,-182.306937,0.00020255,2]
[354152482,1740291043666,-182.306937,0.00020255,2]
[354152483,1740291043677,-182.306937,0.00020255,2]
[354152484,1740291043686,-182.306937,0.00020255,2]
[354152485,1740291043695,-182.306937,0.00020255,2]
[354152486,1740291043704,-182.306937,0.00020255,2]
[354152487,1740291043714,-182.306937,0.00020255,2]
[354152488,1740291043723,-182.306937,0.00020255,2]
[354152489,1740291043733,-182.306939,0.00020255,2]
[354152490,1740291043742,-151.0,0.00020255,2]
[354152491,1740291043752,-184.386841,0.00020255,2]
[354152492,1740291043761,-151.0,0.00020255,2]
[354152493,1740291043770,-151.0,0.00020255,2]
[354152494,1740291043779,-151.0,0.00020255,2]
[354152495,1740291043788,-151.0,0.00020255,2]
[354152496,1740291043798,-151.0,0.00020255,2]
[354152497,1740291043807,-151.0,0.00020255,2]
[354152498,1740291043816,-151.0,0.00020255,2]
[354152499,1740291043826,-151.0,0.00020255,2]
[354152500,1740291043835,-151.0,0.00020255,2]
[354152501,1740291043844,-151.0,0.00020255,2]
[354152502,1740291043854,-151.0,0.00020255,2]
[354152503,1740291043864,-151.0,0.00020255,2]
[354152504,1740291043873,-251.746238,0.00020255,2]
[354152505,1740291043883,-239.482886,0.00020255,2]
[354152506,1740291043894,-239.482886,0.00020255,2]
[354152507,1740291043904,-239.482886,0.00020255,2]
[354152508,1740291043914,-239.482886,0.00020255,2]
[354152509,1740291043923,-239.482886,0.00020255,2]
[354152510,1740291043934,-239.482886,0.00020255,2]
[354152511,1740291043944,-239.482886,0.00020255,2]
[354152512,1740291043954,-239.482886,0.00020255,2]
[354152513,1740291043965,-239.482886,0.00020255,2]
[354152514,1740291043975,-239.482886,0.00020255,2]
[354152515,1740291043984,-239.482886,0.00020255,2]
[354152516,1740291043993,-239.482886,0.00020255,2]
[354152517,1740291044003,-239.482886,0.00020255,2]
[354152518,1740291044012,-239.482886,0.00020255,2]
[354152519,1740291044021,-337.746522,0.00020255,2]
[354152520,1740291044030,-239.482886,0.00020255,2]
[354152521,1740291044039,-337.746522,0.00020255,2]
[354152522,1740291044048,-239.482886,0.00020255,2]
[354152523,1740291044057,-337.746522,0.00020255,2]
[354152524,1740291044066,-337.746522,0.00020255,2]
[354152525,1740291044075,-337.746522,0.00020255,2]
[354152526,1740291044084,-239.482886,0.00020255,2]
[354152527,1740291044093,-337.746522,0.00020255,2]
[354152528,1740291044101,-239.482878,0.00020255,2]
[354152529,1740291044110,-337.746522,0.00020255,2]
[354152530,1740291044119,-337.746522,0.00020255,2]
[354152531,1740291044128,-337.746522,0.00020255,2]
[354152532,1740291044138,-337.746522,0.00020255,2]
[354152533,1740291044147,-337.746522,0.00020255,2]
[354152534,1740291044156,-337.746522,0.00020255,2]
[354152535,1740291044165,-337.746522,0.00020255,2]
[354152536,1740291044174,-337.746522,0.00020255,2]
[354152537,1740291044183,-337.746522,0.00020255,2]
[354152538,1740291044192,-151.0,0.00020255,2]
[354152539,1740291044201,-337.746522,0.00020255,2]
[354152540,1740291044210,-151.0,0.00020255,2]
[354152541,1740291044219,-337.746522,0.00020255,2]
[354152542,1740291044228,-151.0,0.00020255,2]